[Event "7th Sharjah Masters 2024"]
[Site "Sharjah"]
[Date "2024.05.21"]
[Round "8.22"]
[White "Madaminov, Mukhiddin"]
[Black "Banusz, Tamas"]
[Result "1-0"]
[ECO "C84"]
[WhiteElo "2506"]
[BlackElo "2623"]
[Annotator "TA"]
[PlyCount "85"]
[EventDate "2024.05.13"]
[EventType "swiss"]
[EventCountry "UAE"]
[SourceTitle "playchess.com"]
[Source "ChessBase"]
[SourceQuality "1"]
[TimeControl "5400+30"]

{[%evp 13,85,45,55,68,46,55,47,46,58,47,52,32,54,22,18,14,21,29,19,14,22,20,48,32,43,49,72,62,77,78,76,58,86,84,89,87,84,81,150,141,162,160,245,281,285,268,278,290,280,284,278,269,290,256,360,336,413,431,477,468,876,2508,2866,2171,5169,4702,4918,4786,29938,5804,29989,29985,29989,29988]} 1. e4 {[%emt 1:31:00]} e5 {[%emt 1:31:00]} 2. Nf3 {[%emt 0:00:30]} Nc6 {[%emt 0:00:30]} 3. Bb5 {[%emt 0:00:30]} a6 {[%emt 0:00:30]} 4. Ba4 {[%emt 0:00:30]} Nf6 {[%emt 0:00:30]} 5. O-O {[%emt 0:00:30]} Nxe4 {[%emt 0:00:30]} 6. d4 {[%emt 0:00:30]} Be7 {[%emt 0:00:30]} 7. Re1 {[%emt 0:00:30][%cal Bf1e1,Be1e4,Be4e5][%mdl 32]} b5 {[%emt 0:00:30]} 8. Rxe4 {[%emt 0:00:30]} (8. Nxe5 Nxe5 9. dxe5 Bb7 $11 (9... Nxf2 10. Qf3 $11)) (8. dxe5 Nxf2 9. Qe2 Ng4 $15) 8... d5 {[%emt 0:00:30]} 9. Nxe5 {[%emt 0:00:30]} Nxe5 {[%emt 0:00:30]} 10. Rxe5 {[%emt 0:00:30] White is slightly better.} bxa4 {[%emt 0:00:30]} 11. Qe2 {[%emt 0:00:30]} Be6 {[%emt 0:00:30]} 12. f4 $1 {[%emt 0:00:30]} Kf8 {[%emt 0:00:30]} 13. Nc3 {[%emt 0:00:30][%cal Of4f5] f5! is the strong threat.} (13. f5 $5 Bd7 14. Qf2 $15 (14. Rxd5 c6 $11)) 13... Bf6 {[%emt 0:00:30]} 14. Nxa4 {[%emt 0:00:30][%cal Oe2f2]} Bxe5 {[%emt 0:00:30]} 15. fxe5 {[%emt 0:00:30]} Qh4 {[%emt 0:00:30]} 16. Be3 {[%emt 0:00:30][%mdl 1024] White has compensation.} Qg4 {[%emt 0:00:30]} 17. Qd2 {[%emt 0:00:30]} h5 {[%emt 0:00:30][%cal Bh7h5,Bh5h4][%mdl 32]} 18. Nc3 {[%emt 0:00:30][%cal Ba4c3,Bc3e2,Be2f4,Bf4d3,Bd3f4,Bf4e6][%mdl 32]} Rb8 {[%emt 0:00:30]} 19. b3 {[%emt 0:00:30]} h4 {[%emt 0:00:30]} 20. h3 {[%emt 0:00:30]} Qg6 {[%emt 0:00:30]} 21. Ne2 $1 {[%emt 0:00:30]} Qe4 {[%emt 0:00:30]} (21... Bxh3 $2 22. Nf4 Qg4 23. Nxh3 $18) 22. Nf4 {[%emt 0:00:30]} Bf5 {[%emt 0:00:30] White now steadily converts the win.} 23. Nd3 {[%emt 0:00:30]} Kg8 {[%emt 0:00:30]} 24. Re1 {[%emt 0:00:30]} Be6 {[%emt 0:00:30]} 25. Qc3 {[%emt 0:00:30][%cal Oe3d2]} Qg6 {[%emt 0:00:30]} (25... Rc8 $142) 26. Nf4 $1 $16 {[%emt 0:00:30]} (26. Qxc7 Rc8 27. Qd6 Bf5 $11) 26... Qf5 {[%emt 0:00:30]} 27. Rf1 $1 {[%emt 0:00:30][%cal Of4d5,Be1f1,Bf1f4,Bf4g4][%mdl 32] Strongly threatening Nxd5!} (27. Qxc7 Rc8 28. Qe7 Rxc2 $11) 27... Qe4 {[%emt 0:00:30] [#]} (27... Re8 $16 28. Rf2 (28. Qxc7 Rc8 $14) 28... Kh7) 28. Nxe6 $1 $18 {[%emt 0:00:30]} (28. Qxc7 $2 Qxe3+ 29. Rf2 Rc8 $19) 28... fxe6 {[%emt 0:00:30]} 29. Rf4 {[%emt 0:00:30]} (29. Qxc7 $2 Qxe3+ 30. Kh2 Kh7 $19) 29... Qg6 {[%emt 0:00:30]} 30. Qxc7 {[%emt 0:00:30]} Rf8 {[%emt 0:00:30] [#]} 31. Rg4 {[%emt 0:00:30]} (31. Rxf8+ Kxf8 32. Qc8+ Qe8 33. Qxa6 Kg8 $16) 31... Qf7 {[%emt 0:00:30]} 32. Qc6 {[%emt 0:00:30]} a5 {[%emt 0:00:30]} 33. Bg5 {[%emt 0:00:30] Active counter play!} Rh7 {[%emt 0:00:30]} (33... Rh5 {is a better defense.} 34. Bf6 (34. Bxh4 $2 Rxh4 35. Rg3 Rxd4 $19) 34... Rh7) 34. c4 {cxd5 would now be deadly.} (34. Bxh4 $2 Rxh4 35. Rg3 (35. Rxh4 $2 Qf2+ 36. Kh1 Qxh4 $19) 35... Rxd4 $19) 34... Qe8 {[%emt 0:00:30]} 35. Qd6 {[%emt 0:01:00]} (35. cxd5 Qxc6 36. dxc6 Rc8 $16) 35... dxc4 {[%emt 0:00:30]} 36. bxc4 {[%emt 0:00:30][%cal Bb3c4,Bc4d5][%mdl 32]} Kh8 {[%emt 0:00:30]} (36... Rf7 $142 37. d5 (37. Bxh4 Rh6 $18) 37... exd5) 37. d5 {[%emt 0:00:30]} exd5 {[%emt 0:00:30]} 38. cxd5 {[%emt 0:00:30]} Rh5 {[%emt 0:00:30]} 39. e6 {[%emt 0:00:30][%cal Be5e6,Be6e7][%mdl 32]} ({Stronger than} 39. Bxh4 Rxe5 40. Kh2 Re2 $11) 39... Kh7 {[%emt 0:00:30]} 40. e7 {[%emt 0:00:30]} Rg8 {[%emt 0:00:30]} 41. Qe6 {[%emt 0:00:30]} (41. Qe5 $142 Qd7 42. d6 (42. Rxh4 Rxh4 43. Bxh4 Kg6 $18) 42... a4 43. Qd5 (43. Rxh4 Rxh4 44. Bxh4 g6 $18) 43... g6 44. Rxh4 Rxh4 45. Bxh4 Rg7 46. Qe4) 41... Qb5 {[%emt 0:00:30]} 42. a4 {[%emt 0:00:30]} Qb8 {[%emt 0:00:30]} 43. Bf4 {[%emt 0:00:30] Weighted Error Value: White=0.06 (flawless) /Black=0.48.  Mistake:       	---       	Black=4      Inaccurate:     	White=1     	Black=2      OK:         	White=15    	Black=9      Best:        	White=2     	---        Strong:       	White=3     	---} 1-0

[Event "7th Sharjah Masters 2024"]
[Site "Sharjah"]
[Date "2024.05.21"]
[Round "8.23"]
[White "Yuffa, Daniil"]
[Black "Sivuk, Vitaly"]
[Result "1/2-1/2"]
[ECO "C84"]
[WhiteElo "2617"]
[BlackElo "2544"]
[Annotator "TA"]
[PlyCount "67"]
[EventDate "2024.05.13"]
[EventType "swiss"]
[EventCountry "UAE"]
[SourceTitle "playchess.com"]
[Source "ChessBase"]
[SourceQuality "1"]
[TimeControl "5400+30"]

{[%evp 13,67,13,18,8,4,3,8,12,5,0,22,7,0,0,0,0,9,2,0,0,8,3,7,0,0,0,9,8,32,0,12,30,8,0,3,3,12,5,25,25,31,31,32,27,20,0,0,0,0,0,0,0,0,0,0,0]} 1. e4 {[%emt 0:02:07]} e5 {[%emt 0:00:16]} 2. Nf3 {[%emt 0:00:07]} Nc6 {[%emt 0:00:08]} 3. Bb5 {[%emt 0:00:05]} a6 {[%emt 0:00:11]} 4. Ba4 {[%emt 0:00:04]} Nf6 {[%emt 0:00:10]} 5. O-O {[%emt 0:00:31]} Be7 {[%emt 0:00:10]} 6. d3 {[%emt 0:00:14]} b5 {[%emt 0:00:11]} 7. Bb3 {[%emt 0:00:05]} d6 {[%emt 0:00:10]} 8. Bd2 {[%emt 0:00:12]} Bg4 {[%emt 0:04:30]} 9. c3 {[%emt 0:00:32] Against Nd4} Na5 {[%emt 0:00:16]} 10. Bc2 {[%emt 0:00:04]} c5 {[%emt 0:00:22]} 11. Bc1 {[%emt 0:01:39]} O-O {[%emt 0:01:51]} 12. Nbd2 {[%emt 0:01:01][%cal Bb1d2,Bd2f1,Bf1e3,Be3d5][%mdl 32]} Qc7 {[%emt 0:10:11]} 13. h3 {[%emt 0:04:32]} Bd7 {[%emt 0:04:08]} 14. Re1 {[%emt 0:01:25]} Nc6 {[%emt 0:04:03]} 15. Nf1 {[%emt 0:03:26]} d5 {[%emt 0:00:46]} 16. Ne3 {[%emt 0:09:18]} d4 {[%emt 0:17:14]} 17. Nd5 {[%emt 0:01:02]} Qd6 {[%emt 0:00:08]} 18. Bg5 {[%emt 0:19:34]} Bd8 {[%emt 0:17:52]} 19. Bb3 {[%emt 0:07:21]} Rb8 {[%emt 0:16:52]} 20. Rc1 {[%emt 0:11:59]} h6 {[%emt 0:06:48]} 21. Bh4 {[%emt 0:06:22]} (21. cxd4 $5 cxd4 (21... hxg5 22. dxc5 Qe6 23. d4 $11) 22. Bh4 $14) 21... dxc3 $1 {[%emt 0:03:26]} 22. bxc3 {[%emt 0:00:18]} Nh5 {[%emt 0:00:17]} 23. d4 {[%emt 0:10:21][%cal Bd3d4,Bd4e5][%mdl 32] [#] And now Nxe5 would win.} c4 {[%emt 0:03:14]} 24. Nxe5 {[%emt 0:03:32]} (24. dxe5 $5 Qg6 $8 (24... Nxe5 $2 25. Nf6+ $18) 25. Bxd8 Rbxd8 26. Nh4 $11) 24... Nxe5 {[%emt 0:01:18]} (24... Bxh4 25. Nxd7 Qxd7 26. Qxh5 Bxf2+ (26... cxb3 27. Qxh4 bxa2 28. Qxh6 $18) 27. Kxf2 $16) 25. Qxh5 {[%emt 0:00:22]} Bxh4 {[%emt 0:00:49]} 26. dxe5 {[%emt 0:00:33]} (26. Qxe5 $2 Qxe5 27. dxe5 cxb3 28. axb3 Rfe8 $19) 26... Bxf2+ $1 {[%emt 0:00:38]} 27. Kxf2 {[%emt 0:00:25]} Qc5+ {[%emt 0:00:05]} 28. Re3 {[%emt 0:01:30]} cxb3 {[%emt 0:00:21] [#]} 29. Nf6+ $1 {[%emt 0:06:29] The position is equal.} gxf6 {[%emt 0:00:17]} 30. Qxh6 {[%emt 0:00:04]} fxe5 {[%emt 0:08:48]} (30... Qxe5 31. axb3 (31. Rg3+ Qxg3+ 32. Kxg3 bxa2 $16) 31... Bf5 (31... Qg5 $2 32. Rg3 $18) 32. exf5 Qxf5+ 33. Rf3 Qc5+ 34. Qe3 Qxe3+ 35. Rxe3 $11 (35. Kxe3 Rfe8+ 36. Kd2 Rb6 $11)) 31. Qg5+ {[%emt 0:02:37]} Kh7 {[%emt 0:00:00] Threatens to win with ...Rb6.} 32. Qh5+ {[%emt 0:00:24]} Kg7 {[%emt 0:00:00]} 33. Qg5+ {[%emt 0:00:04]} Kh7 {[%emt 0:00:00] ...Rb6 would now be deadly.} 34. Qh5+ {[%emt 0:00:04] Weighted Error Value: White=0.03 (flawless) /Black=0.04 (flawless) .  OK:         	White=15    	Black=11     Best:        	White=3     	Black=2      Strong:       	---       	Black=2} 1/2-1/2

[Event "7th Sharjah Masters 2024"]
[Site "Sharjah"]
[Date "2024.05.21"]
[Round "8.24"]
[White "Petrosyan, Manuel"]
[Black "Pranav Anand"]
[Result "1-0"]
[ECO "E05"]
[WhiteElo "2618"]
[BlackElo "2532"]
[Annotator "TA"]
[PlyCount "99"]
[EventDate "2024.05.13"]
[EventType "swiss"]
[EventCountry "UAE"]
[SourceTitle "playchess.com"]
[Source "ChessBase"]
[SourceQuality "1"]
[TimeControl "5400+30"]

{[%evp 21,99,10,8,11,12,8,8,7,9,8,11,0,17,14,7,0,13,9,32,14,31,30,24,27,46,34,47,47,50,49,85,80,76,71,73,77,97,88,104,99,99,63,77,79,102,101,196,163,177,178,274,270,240,268,422,415,422,422,468,418,585,594,601,557,720,490,931,879,1354,1044,29979,29980,29980,29981,29982,29983,29987,29986,29993,29989]} 1. Nf3 {[%emt 0:04:06]} Nf6 {[%emt 0:00:04]} 2. g3 {[%emt 0:00:08]} d5 {[%emt 0:00:05]} 3. Bg2 {[%emt 0:00:06]} e6 {[%emt 0:00:04]} 4. O-O {[%emt 0:00:14]} Be7 {[%emt 0:00:04]} 5. c4 {[%emt 0:00:19]} O-O {[%emt 0:00:07]} 6. d4 {[%emt 0:00:04]} dxc4 {[%emt 0:00:04]} 7. Qc2 {[%emt 0:00:06]} a6 {[%emt 0:00:04]} 8. a4 {[%emt 0:00:05]} Bd7 {[%emt 0:00:05]} 9. Qxc4 {[%emt 0:00:08]} Bc6 {[%emt 0:00:05]} 10. Bg5 {[%emt 0:02:14]} Nbd7 {[%emt 0:00:20]} 11. Nc3 {[%emt 0:01:12]} h6 {[%emt 0:00:16]} 12. Bxf6 {[%emt 0:00:04]} Nxf6 {[%emt 0:00:06]} 13. Rfd1 {[%emt 0:00:11]} Qd6 {[%emt 0:03:02]} 14. Qb3 {[%emt 0:02:36] The position is equal.} Rfd8 {[%emt 0:01:22]} 15. e3 {[%emt 0:01:37]} Rac8 {[%emt 0:03:39]} 16. a5 {[%emt 0:03:43]} Qb4 {[%emt 0:06:33]} 17. Qc2 {[%emt 0:00:35]} Bf8 {[%emt 0:03:59]} 18. Ne5 {[%emt 0:07:40]} Bxg2 {[%emt 0:00:33]} 19. Kxg2 {[%emt 0:00:05]} Nd7 {[%emt 0:06:46]} 20. Nd3 {[%emt 0:04:19] Excellent horsemanship.} Qc4 {[%emt 0:03:21]} 21. Qa4 {[%emt 0:04:35]} Qxa4 {[%emt 0:03:42]} 22. Nxa4 {[%emt 0:00:14]} h5 {[%emt 0:02:12]} 23. b4 {[%emt 0:04:15]} c6 {[%emt 0:02:25]} 24. Nac5 {[%emt 0:05:04]} Rc7 {[%emt 0:02:24]} 25. f4 {[%emt 0:01:26]} Re8 {[%emt 0:04:58]} 26. Kf3 {[%emt 0:06:30]} f6 {[%emt 0:01:25]} 27. Ne4 {[%emt 0:06:34] White has more active pieces.} Be7 {[%emt 0:07:42]} 28. h3 {[%emt 0:00:09]} Kf7 {[%emt 0:09:42]} 29. g4 {[%emt 0:02:34]} Rh8 {[%emt 0:02:09]} 30. Rh1 {[%emt 0:00:19][%cal Bd1h1,Bh1b1,Bb1b3][%mdl 32]} Rcc8 {[%emt 0:02:42]} 31. Ndc5 {[%emt 0:00:41]} Nxc5 {[%emt 0:02:12]} 32. bxc5 {[%emt 0:00:12]} Rcd8 {[%emt 0:00:42]} 33. Rhb1 {[%emt 0:12:35]} Rd7 {[%emt 0:01:07]} (33... hxg4+ $16 {is a better defense.} 34. hxg4 Rh3+ 35. Ke2 Rh2+ 36. Kf3 Rh3+ 37. Ke2 Rb8) 34. Rb3 {[%emt 0:04:49]} hxg4+ {[%emt 0:16:55]} 35. hxg4 {[%emt 0:00:04]} Ra8 {[%emt 0:01:19]} (35... g5 $142 36. fxg5 fxg5) 36. Rab1 $18 {[%emt 0:01:52]} Ra7 {[%emt 0:00:01]} 37. R3b2 {[%emt 0:01:47]} Kg6 {[%emt 0:02:55]} (37... Rc7 {might work better.} 38. Rh2 Ra8) 38. Nd2 {[%emt 0:00:46]} Kf7 {[%emt 0:01:52]} 39. Nc4 {[%emt 0:00:35]} Kg8 {[%emt 0:00:22]} 40. Ke4 {[%emt 0:03:23]} Kf7 {[%emt 0:00:26] [#]} 41. g5 $1 {[%emt 0:01:09][%mdl 512]} Rc7 {[%emt 0:04:33]} (41... Ke8 42. gxf6) 42. gxf6 {[%emt 0:02:04]} gxf6 {[%emt 0:01:42][%cal Bg7f6,Bf6e5][%mdl 32]} 43. Nb6 {[%emt 0:00:16]} Bf8 {[%emt 0:01:26]} (43... f5+ $142 44. Ke5 Ra8) 44. Rh1 {[%emt 0:01:18]} Bg7 {[%emt 0:00:11]} 45. f5 {[%emt 0:00:44]} e5 {[%emt 0:01:19]} 46. dxe5 {[%emt 0:00:31] White mates.} fxe5 {[%emt 0:00:02]} 47. Rd2 {[%emt 0:00:48]} Ke8 {[%emt 0:02:25]} 48. Rh7 {[%emt 0:02:15]} Kf7 {[%emt 0:00:23]} 49. Rd8 {[%emt 0:00:55]} Kf6 {[%emt 0:00:22]} 50. Rd6+ {[%emt 0:00:48] Weighted Error Value: White=0.11 (very precise) /Black=0.39.  Mistake:       	---       	Black=4      Inaccurate:     	White=1     	Black=3      OK:         	White=16    	Black=5} 1-0

[Event "7th Sharjah Masters 2024"]
[Site "Sharjah"]
[Date "2024.05.21"]
[Round "8.25"]
[White "Gholami Orimi, Mahdi"]
[Black "Theodorou, Nikolas"]
[Result "1-0"]
[ECO "E06"]
[WhiteElo "2470"]
[BlackElo "2617"]
[Annotator "TA"]
[PlyCount "151"]
[EventDate "2024.05.13"]
[EventType "swiss"]
[EventCountry "UAE"]
[SourceTitle "playchess.com"]
[Source "ChessBase"]
[SourceQuality "1"]
[TimeControl "5400+30"]

{[%evp 66,151,102,92,101,96,154,70,120,70,127,108,133,79,156,152,145,152,157,151,147,143,246,256,266,269,359,267,310,308,213,302,245,228,1536,1447,1705,1042,2346,1905,5949,5949,29972,29973,29984,29984,29979,502,531,289,275,275,245,179,179,172,29955,5077,29964,29972,29972,29973,29973,29974,29973,29970,29975,29976,29976,29977,29977,29978,29978,29979,29979,29980,29978,29981,29981,29982,29983,29984,29984,29985,29985,29986,29986,29987]} 1. d4 {[%emt 0:00:05]} Nf6 {[%emt 0:00:07]} 2. c4 {[%emt 0:00:07]} e6 {[%emt 0:00:12]} 3. g3 {[%emt 0:00:35]} d5 {[%emt 0:01:27]} 4. Bg2 {[%emt 0:01:27]} Be7 {[%emt 0:03:45]} 5. Nf3 {[%emt 0:00:08]} O-O {[%emt 0:00:06]} 6. O-O {[%emt 0:00:10]} a5 {[%emt 0:00:03]} 7. Qc2 {[%emt 0:03:32]} Nc6 {[%emt 0:00:35]} 8. Bf4 {[%emt 0:05:15]} Nb4 {[%emt 0:16:43]} 9. Qc1 {[%emt 0:01:36]} dxc4 {[%emt 0:00:15]} 10. Na3 {[%emt 0:09:08]} b6 {[%emt 0:18:10]} 11. Ne5 {[%emt 0:03:18]} Nfd5 {[%emt 0:00:36]} 12. Naxc4 {[%emt 0:03:31]} f6 {[%emt 0:05:35]} 13. Nf3 {[%emt 0:03:33]} c5 {[%emt 0:00:02]} 14. a3 {[%emt 0:27:22]} Nc6 {[%emt 0:02:37]} 15. dxc5 {[%emt 0:04:25]} Bxc5 {[%emt 0:00:03]} 16. Rd1 {[%emt 0:04:46]} Qe7 {[%emt 0:16:13]} 17. Bd2 {[%emt 0:01:18]} b5 {[%emt 0:13:56]} 18. Ne3 {[%emt 0:03:50]} Bb7 {[%emt 0:03:27]} 19. Nxd5 {[%emt 0:01:20]} exd5 {[%emt 0:00:03]} 20. Qc3 {[%emt 0:05:42]} Ne5 {[%emt 0:01:52]} 21. Be3 {[%emt 0:01:24]} Nxf3+ {[%emt 0:00:47]} 22. Bxf3 {[%emt 0:00:30]} Bxe3 {[%emt 0:00:53]} 23. Qxe3 {[%emt 0:00:02]} Qxe3 {[%emt 0:00:15]} 24. fxe3 {[%emt 0:00:01]} Rac8 {[%emt 0:00:05]} 25. Kf2 {[%emt 0:09:33]} Rfd8 {[%emt 0:06:22]} 26. Rac1 {[%emt 0:00:33]} Kf8 {[%emt 0:01:01]} 27. Rxc8 {[%emt 0:01:19]} Bxc8 {[%emt 0:00:02]} 28. Bxd5 {[%emt 0:06:53]} Ke7 {[%emt 0:00:02]} 29. Rd4 {[%emt 0:01:00]} Bd7 {[%emt 0:00:59]} 30. Be4 {[%emt 0:00:21]} h6 {[%emt 0:01:08]} 31. Ke1 {[%emt 0:02:00]} Rb8 {[%emt 0:00:44]} 32. Kd2 {[%emt 0:00:42]} b4 {[%emt 0:01:05]} 33. axb4 {[%emt 0:00:27]} axb4 {[%emt 0:00:23]} 34. Bd5 {[%emt 0:00:26]} g5 {[%emt 0:00:36]} 35. e4 {[%emt 0:00:32]} Be8 {[%emt 0:01:20]} (35... Be6 $142 36. Kc2 Bxd5 37. exd5 f5) 36. Bb3 {[%emt 0:00:23]} ({White should try} 36. Rc4 $16) 36... Bd7 {[%emt 0:00:26]} (36... Bf7 $14 37. Bd5 h5) 37. Ke3 {[%emt 0:00:13]} (37. e5 $16 {aiming for exf6+.} fxe5 38. Rd5) 37... Rb6 {[%emt 0:00:37]} (37... Be6 $1 $14 38. Bxe6 Kxe6) 38. Rd1 {[%emt 0:00:16]} Ra6 {[%emt 0:01:11]} 39. Rc1 {[%emt 0:00:14]} ({Better is} 39. Bd5) 39... Ra7 {[%emt 0:01:45]} (39... Be6 $142 40. Bd5 Bxd5 41. exd5 Ra2) 40. Kd4 $16 {[%emt 0:00:31]} Kd6 {[%emt 0:03:40]} 41. Rf1 {[%emt 0:00:09]} Ke7 {[%emt 0:00:01]} 42. e5 {[%emt 0:00:27]} fxe5+ {[%emt 0:00:02]} 43. Kxe5 {[%emt 0:00:01]} Be8 {[%emt 0:00:12]} (43... Ra5+ $16 {was worth a try.} 44. Kd4 Be6 45. Bxe6 Kxe6) 44. e4 $18 {[%emt 0:00:42]} Ra5+ {[%emt 0:00:25]} 45. Bd5 {[%emt 0:00:18]} Rc5 {[%emt 0:00:14]} 46. Rf2 {[%emt 0:01:27]} Rc1 {[%emt 0:00:39]} 47. b3 {[%emt 0:00:22]} h5 {[%emt 0:00:26]} 48. Ra2 {[%emt 0:02:36]} Rc7 {[%emt 0:00:49]} 49. Ra6 {[%emt 0:00:00]} Rc2 $2 {[%emt 0:00:02]} (49... Bf7 50. Rb6 g4) 50. Ra7+ $18 {[%emt 0:00:00]} Kf8 {[%emt 0:00:05]} 51. Kd6 {[%emt 0:00:00]} Rxh2 {[%emt 0:00:22]} 52. Ra8 {[%emt 0:00:13]} h4 {[%emt 0:02:19]} 53. gxh4 {[%emt 0:00:47]} Rxh4 {[%emt 0:00:01]} 54. e5 {[%emt 0:00:06]} Rh7 {[%emt 0:00:21]} 55. e6 {[%emt 0:00:23]} g4 {[%emt 0:00:22]} 56. Ra1 {[%emt 0:01:47]} (56. Bc6 $142 Rh6 57. Rxe8+ Kg7 58. Rb8 g3 59. Rxb4 Rf6 60. Rg4+ Kh6 61. Rxg3) 56... Rh5 {[%emt 0:00:43]} 57. Be4 {[%emt 0:00:40]} g3 {[%emt 0:00:44]} 58. Ra8 {[%emt 0:00:24]} Rh8 {[%emt 0:01:08]} 59. Bc6 {[%emt 0:00:32]} Kg7 {[%emt 0:00:07]} 60. Bxe8 {[%emt 0:00:24]} g2 $2 {[%emt 0:01:46]} (60... Rxe8 $18 61. Rxe8 g2 62. Rg8+ (62. Re7+ Kh6 $11) 62... Kxg8) 61. Ra7+ {[%emt 0:00:18]} Kf8 {[%emt 0:00:28]} 62. Ra1 {[%emt 0:00:48]} Rh1 {[%emt 0:00:17]} 63. Bc6 {[%emt 0:00:26]} Rxa1 {[%emt 0:00:14]} 64. e7+ {[%emt 0:00:03]} ({Stronger than} 64. Bxg2 Rd1+ 65. Kc5 Rg1 $11) 64... Kg7 {[%emt 0:00:02]} 65. Bxg2 {[%emt 0:00:13]} ({And not} 65. e8=Q Rd1+ 66. Bd5 g1=Q $11) 65... Re1 {[%emt 0:01:31]} 66. Bc6 $1 {[%emt 0:00:08]} Kf7 {[%emt 0:00:31]} 67. e8=Q+ {[%emt 0:00:08]} Rxe8 {[%emt 0:00:07]} 68. Bxe8+ {[%emt 0:00:02]} Kxe8 {[%emt 0:00:15]} 69. Kc5 {[%emt 0:00:06]} Kd7 {[%emt 0:00:09]} 70. Kxb4 {[%emt 0:00:05]} Kc6 {[%emt 0:00:25] [#]} 71. Ka5 $1 {[%emt 0:00:09]} Kb7 {[%emt 0:00:22]} 72. Kb5 {[%emt 0:00:35]} Kc7 {[%emt 0:00:07] [#]} 73. Ka6 $1 {[%emt 0:00:20]} Kc6 {[%emt 0:00:14]} 74. b4 {[%emt 0:00:47]} Kc7 {[%emt 0:00:06]} 75. b5 {[%emt 0:00:23]} Kb8 {[%emt 0:00:05]} 76. Kb6 {[%emt 0:00:11]} 1-0

[Event "7th Sharjah Masters 2024"]
[Site "Sharjah"]
[Date "2024.05.21"]
[Round "8.26"]
[White "Idani, Pouya"]
[Black "Royal, Shreyas"]
[Result "1-0"]
[ECO "C78"]
[WhiteElo "2605"]
[BlackElo "2464"]
[Annotator "TA"]
[PlyCount "107"]
[EventDate "2024.05.13"]
[EventType "swiss"]
[EventCountry "UAE"]
[SourceTitle "playchess.com"]
[Source "ChessBase"]
[SourceQuality "1"]
[TimeControl "5400+30"]

{[%evp 40,107,64,33,36,19,51,66,63,70,60,41,95,102,106,98,141,135,126,139,126,126,137,128,123,132,129,132,130,129,160,162,218,166,159,162,255,255,250,242,337,322,343,338,377,362,360,354,541,515,566,526,607,547,1384,1346,1384,1337,3512,2197,1722,1523,29974,29975,29975,29976,29988,29989,29989,29990]} 1. e4 {[%emt 0:00:02]} e5 {[%emt 0:00:07]} 2. Nf3 {[%emt 0:00:06]} Nc6 {[%emt 0:00:05]} 3. Bb5 {[%emt 0:02:38]} a6 {[%emt 0:00:05]} 4. Ba4 {[%emt 0:00:20]} Nf6 {[%emt 0:00:07]} 5. O-O {[%emt 0:00:44]} b5 {[%emt 0:00:05]} 6. Bb3 {[%emt 0:00:04]} Bc5 {[%emt 0:00:05]} 7. d3 {[%emt 0:02:24]} d6 {[%emt 0:00:50]} 8. c3 {[%emt 0:00:05]} h6 {[%emt 0:01:07]} 9. Be3 {[%emt 0:00:31] C78: Ruy Lopez: Archangelsk and Möller Defences.} O-O {[%emt 0:03:59]} 10. Nbd2 {[%emt 0:01:01]} Re8 {[%emt 0:07:23]} 11. Bxc5 $1 $146 {[%emt 0:03:32][%mdl 8] A relevant novelty.} ({Predecessor:} 11. h3 Bd7 12. d4 Bb6 13. Bc2 a5 14. Re1 a4 15. d5 Ne7 16. Bxb6 cxb6 17. Bd3 {1-0 Hou,Y (2650)-Lagno,K (2547) Speed Chess (Women) blitz 2022 (4.15)}) 11... dxc5 {[%emt 0:00:01]} 12. Qe2 {[%emt 0:00:08]} Qd6 {[%emt 0:03:47]} 13. Rfd1 {[%emt 0:05:25]} Be6 {[%emt 0:03:16]} 14. Bxe6 {[%emt 0:01:01]} Rxe6 {[%emt 0:01:12]} 15. a4 {[%emt 0:00:31]} Ree8 {[%emt 0:01:11]} 16. Nf1 {[%emt 0:03:09]} g6 {[%emt 0:03:28]} 17. Ne3 {[%emt 0:02:09]} Qe6 {[%emt 0:00:58]} 18. Qc2 {[%emt 0:13:26]} Rad8 {[%emt 0:04:21]} 19. Nd2 {[%emt 0:07:27]} Nb8 {[%emt 0:11:52]} 20. axb5 {[%emt 0:02:02]} axb5 {[%emt 0:00:02]} 21. Nb3 {[%emt 0:05:46]} Nbd7 {[%emt 0:01:23]} 22. c4 {[%emt 0:01:03]} Rb8 {[%emt 0:05:39]} 23. Ra5 {[%emt 0:03:33]} bxc4 {[%emt 0:03:09]} 24. Nxc4 {[%emt 0:01:00]} Qc6 {[%emt 0:00:06]} 25. Ra7 {[%emt 0:06:00]} Qb5 {[%emt 0:03:29]} ({Better is} 25... Ra8 $14 26. Rda1 Reb8) 26. Nbd2 $16 {[%emt 0:00:06]} Ra8 {[%emt 0:06:26]} 27. Rxc7 {[%emt 0:05:28]} Reb8 {[%emt 0:02:22]} 28. Nf3 {[%emt 0:00:24]} Ne8 {[%emt 0:00:20]} 29. Na3 {[%emt 0:03:53]} Rxa3 {[%emt 0:01:20]} 30. Rxd7 {[%emt 0:31:32]} Rb3 {[%emt 0:08:02]} 31. Nxe5 {[%emt 0:00:00]} Rxb2 {[%emt 0:00:05] [#]} 32. Qc4 $1 {[%emt 0:00:00]} Qxc4 {[%emt 0:00:18]} 33. Nxc4 {[%emt 0:00:00]} Rb1 {[%emt 0:00:13]} 34. Rf1 {[%emt 0:00:00]} Ng7 {[%emt 0:01:55]} 35. Nd6 {[%emt 0:00:00]} Ne6 {[%emt 0:02:02]} (35... f6 $142 36. g3 Rxf1+ 37. Kxf1 Ne6) 36. g3 {[%emt 0:00:00]} (36. Rxf7 Rxf1+ 37. Kxf1 Rd8 $19) 36... Rxf1+ {[%emt 0:03:53]} 37. Kxf1 {[%emt 0:00:00]} Rd8 {[%emt 0:00:03]} (37... f6 $142 38. Ra7 Nd4) 38. Rxd8+ $18 {[%emt 0:00:00]} Nxd8 {[%emt 0:00:01]} 39. Ke2 {[%emt 0:00:00]} Kf8 {[%emt 0:00:04]} 40. e5 {[%emt 0:00:00]} Ke7 {[%emt 0:01:55]} 41. Ne4 {[%emt 0:00:00]} Ne6 {[%emt 0:03:12]} 42. f4 {[%emt 0:00:00]} Nd4+ {[%emt 0:02:11]} 43. Kd2 {[%emt 0:00:00]} Nf3+ {[%emt 0:03:25]} (43... Ne6 $142 44. Kc3 Kd7) 44. Kc3 $18 {[%emt 0:00:00]} g5 {[%emt 0:01:31]} 45. Kc4 {[%emt 0:00:00]} (45. Nxc5 gxf4 46. gxf4 Nxh2 $16) 45... gxf4 {[%emt 0:00:50]} 46. gxf4 {[%emt 0:00:00]} (46. Kxc5 Nxe5 47. d4 (47. gxf4 Nxd3+ 48. Kd4 Nxf4 $15) 47... f5 $11) 46... Nxh2 {[%emt 0:02:41]} 47. Kxc5 {[%emt 0:00:00]} Nf3 {[%emt 0:03:31]} 48. d4 {[%emt 0:00:00]} h5 {[%emt 0:00:49]} 49. d5 {[%emt 0:00:00]} h4 {[%emt 0:00:44]} 50. d6+ {[%emt 0:00:00]} Kd7 {[%emt 0:00:54]} 51. Kd5 {[%emt 0:05:16]} h3 {[%emt 0:00:36]} 52. f5 {[%emt 0:00:03]} Ng5 {[%emt 0:02:40]} 53. Nc5+ {[%emt 0:00:15]} ({Not} 53. Nxg5 h2 54. e6+ (54. Nxf7 h1=Q+ 55. Kd4 Qg1+ 56. Kd5 Qg2+ 57. Kc5 Qf2+ 58. Kd5 Qxf5 59. Nh8 Qh5 60. Ke4 Ke6 61. Ke3 Qxh8 62. Kd3 Qxe5 63. d7 Kxd7 64. Kd2 Kc6 65. Kd3 Kd5 66. Kc2 Qe3 67. Kd1 Kc4 68. Kc2 Qe2+ 69. Kc1 Kc3 70. Kb1 Qb2#) 54... fxe6+ 55. fxe6+ Ke8 56. d7+ Ke7 $11) 53... Kd8 {[%emt 0:01:01]} 54. Kc6 {[%emt 0:00:05]} 1-0